bitfinex/quotes_ETHUSD_20220227
["timestamp","ask_amount","ask_price","bid_price","bid_amount"]
[1645969603117,5.0,2733.9,2730.4,8.60197624]
[1645969603118,2.3526,2732.9,2730.7,3.47940025]
[1645969603315,0.01231707,2733.3,2731.4,0.18873243]
[1645969603517,2.0,2732.5,2731.6,5.0]
[1645969603718,0.012,2735.3,2731.6,5.0]
[1645969603719,0.25,2734.0,2732.0,0.2354166]
[1645969603919,2.0,2734.0,2732.0,3.5]
[1645969604118,0.012,2735.3,2732.1,0.1463]
[1645969604119,0.3526,2734.2,2732.1,0.1463]
[1645969604321,5.3526,2734.2,2732.1,0.1463]
[1645969604569,5.0,2733.8,2732.1,0.1463]
[1645969604772,5.0,2733.8,2731.3,0.1463]
[1645969604773,2.0,2732.3,2731.3,0.1463]
[1645969604972,5.01277402,2733.7,2731.4,7.3212]
[1645969605172,1.24378763,2732.6,2731.5,3.6463]
[1645969605372,2.0,2732.8,2731.5,0.1463]
[1645969605572,2.0,2732.8,2731.7,1.0]
[1645969605772,2.0,2732.8,2731.8,0.1463]
[1645969606072,6.5,2732.6,2731.4,4.0774]
[1645969606271,5.0,2732.5,2731.4,0.4222]
[1645969606474,5.0,2732.5,2730.8,0.04092649]
[1645969606475,4.0,2732.4,2730.8,0.04092649]
[1645969606672,3.5,2732.3,2731.5,0.1464]
[1645969606875,2.0,2731.7,2731.5,0.03636609]
[1645969607071,3.95,2732.4,2731.5,0.03636609]
[1645969607072,6.42471619,2732.4,2731.5,0.03636609]
[1645969607271,2.0,2732.3,2731.5,0.03636609]
[1645969607673,6.42471619,2732.4,2731.6,0.1464]
[1645969607876,6.42471619,2732.4,2731.8,0.00191379]
[1645969608515,1.04165252,2732.0,2731.8,0.00191379]
[1645969608714,1.04165252,2732.0,2731.8,1.379e-05]
[1645969608916,7.5,2731.9,2730.9,0.06669156]
[1645969609118,1.18354658,2731.2,2730.9,0.06669156]
[1645969609313,7.5,2731.9,2730.9,0.06669156]
[1645969609519,9.5,2731.9,2730.9,0.06669156]
[1645969609715,2.0,2731.9,2730.9,0.06669156]
[1645969609917,0.25,2732.6,2730.9,0.06669156]
[1645969610116,2.0,2732.5,2730.9,0.06669156]
[1645969610619,6.476e-05,2731.7,2731.4,5.0]
[1645969610818,2.0,2733.4,2731.6,5.0]
[1645969611017,0.01211235,2734.8,2732.9,5.0]
[1645969611219,2.47421251,2735.0,2733.0,3.5]
[1645969611417,2.47421251,2735.0,2733.1,0.2504973]
[1645969611619,2.47421251,2735.0,2733.1,0.38484586]
[1645969611620,4.50952453,2734.4,2733.1,0.38484586]
[1645969611916,3.5,2734.3,2733.0,0.3]
[1645969612165,0.25,2734.7,2733.1,0.17915937]
[1645969612166,0.01222826,2734.0,2733.1,0.17915937]
[1645969612360,2.0,2734.5,2733.9,0.5]
[1645969612561,1.0,2733.4,2732.8,0.1637326]
[1645969612762,1.0,2733.4,2732.6,1.0213]
[1645969612964,1.0,2733.4,2732.7,3.5]
[1645969613164,1.0,2733.4,2732.7,3.99602073]
[1645969613372,1.0,2733.4,2732.8,0.23486769]
[1645969613569,2.8,2735.4,2733.3,5.21075979]
[1645969613766,2.8,2735.4,2733.7,5.15759702]
[1645969613971,1.06189937,2735.5,2733.9,5.0]
[1645969614170,0.01983913,2736.2,2734.4,5.0]
[1645969614367,0.01983913,2736.2,2734.8,5.0]
[1645969614566,0.01983913,2736.2,2734.9,0.21215698]
[1645969614771,0.01983913,2736.2,2734.9,0.17071472]
[1645969615170,0.01218743,2736.5,2734.9,0.17071472]
[1645969615374,0.00496724,2735.7,2734.0,8.3154]
[1645969615568,0.012,2736.7,2734.0,8.3154]
[1645969615569,3.3439914,2737.1,2735.1,0.5]
[1645969615814,0.01236821,2736.2,2735.1,0.5]
[1645969616017,0.01236821,2736.2,2734.1,3.5]
[1645969616215,0.01236821,2736.2,2734.2,10.77]
[1645969616416,0.01236821,2736.2,2734.3,3.5]
[1645969616615,0.01236821,2736.2,2734.3,14.43458557]
[1645969616815,0.25,2736.3,2734.4,10.77]
[1645969617018,0.25,2736.3,2734.6,10.77]
[1645969617215,0.1462,2736.9,2734.8,10.77]
[1645969617216,1.02244854,2736.4,2734.8,10.77]
[1645969617426,0.1462,2736.9,2735.2,10.77]
[1645969617618,0.1462,2736.9,2735.4,10.77]
[1645969617817,0.1462,2736.9,2735.5,3.5]
[1645969618018,0.1462,2736.9,2735.5,3.71313328]
[1645969618216,0.1462,2736.9,2735.6,0.50555777]
[1645969618419,0.1462,2736.9,2736.3,1.0]
[1645969618621,0.1462,2736.9,2736.3,1.3]
[1645969619021,0.00550543,2736.4,2736.3,1.3]
[1645969619424,0.15160543,2736.4,2736.3,1.3]
[1645969619857,0.5,2736.5,2736.3,1.3]
[1645969620061,0.26266796,2738.1,2736.3,4.8]
[1645969620062,0.01266796,2738.1,2736.3,4.8]
[1645969620258,0.00550541,2736.5,2736.4,0.18055989]
[1645969620957,0.00550541,2736.5,2736.4,1.18055989]
[1645969621156,1.02526955,2736.9,2736.4,1.18055989]
[1645969621357,0.00550539,2736.6,2736.3,0.6]
[1645969621557,0.00550539,2736.6,2736.3,0.3]
[1645969621756,0.00550539,2736.6,2736.5,1.0]
[1645969622157,0.00550539,2736.6,2736.5,1.3]
[1645969622362,0.01834845,2736.9,2736.5,1.45907669]
[1645969622556,0.01834845,2736.9,2736.5,0.5104411]
[1645969622960,0.01834845,2736.9,2736.7,1.0]
[1645969623160,0.01834845,2736.9,2736.7,1.21255005]
[1645969623416,0.01834845,2736.9,2736.8,0.15280881]
[1645969623615,0.1461,2738.5,2736.8,10.92280881]
[1645969623819,0.02205782,2737.3,2737.1,15.77]
[1645969624018,0.02205782,2737.3,2737.2,18.08909227]
[1645969624217,0.02205782,2737.3,2737.2,18.25030696]
[1645969624420,0.02205782,2737.3,2737.2,21.25030696]
[1645969624620,0.1461,2739.6,2737.4,11.34823079]
[1645969624919,0.1461,2739.6,2738.1,10.77]
[1645969625119,0.1459,2739.7,2738.3,10.96497989]
[1645969625321,0.25,2739.6,2738.7,10.77]
[1645969625519,0.1459,2739.5,2738.7,10.77]
[1645969625717,0.1459,2739.5,2739.4,0.3]
[1645969626121,0.146,2739.5,2738.7,3.74888632]
[1645969626319,0.146,2739.5,2739.4,1.0]
[1645969626521,0.1459,2741.2,2739.4,1.0]
[1645969626721,0.3959,2741.2,2739.5,3.5]
[1645969626934,1.18710384,2740.7,2739.5,0.20627026]
[1645969627174,0.1459,2740.6,2739.5,14.47627026]
[1645969627379,0.75,2741.4,2739.6,0.20842374]
[1645969627380,0.3959,2741.4,2739.6,0.20842374]
[1645969627577,3.0787,2741.6,2739.7,10.77]
[1645969627578,0.25,2741.2,2739.7,10.77]
[1645969627776,0.1459,2741.1,2740.6,1.0]
[1645969627980,0.1459,2741.1,2740.6,1.3]
[1645969628176,1.17553429,2741.0,2740.6,1.3]
[1645969628376,0.25,2741.2,2740.6,1.3]
[1645969628377,0.1459,2740.9,2740.6,1.3]
[1645969628577,2.48366593,2742.2,2740.6,1.3]
[1645969628578,0.1459,2741.1,2740.6,1.3]
[1645969628778,0.00552198,2741.0,2740.7,0.13819997]
[1645969628980,0.0001,2740.9,2740.7,14.58085816]
[1645969629178,0.0001066,2741.4,2740.9,10.77]
[1645969629377,1.42357014,2741.3,2740.9,0.50259803]
[1645969629581,1.42357014,2741.3,2740.9,0.6]
[1645969629776,0.25,2741.3,2740.9,0.3]
[1645969629977,0.0001066,2741.4,2740.7,0.13819997]
[1645969629978,0.0001066,2741.4,2740.7,0.43819997]
[1645969630176,5.0,2741.9,2740.7,9.997e-05]
[1645969630380,0.01247723,2741.6,2739.5,3.5]
[1645969630582,1.65407723,2741.8,2738.7,7.5]
[1645969630824,3.29938497,2743.9,2741.2,5.69111344]
[1645969631019,4.969,2745.1,2742.7,10.77]
[1645969631020,3.5,2744.8,2742.7,10.77]
[1645969631219,0.25,2743.9,2742.8,0.01278146]
[1645969631419,0.25,2743.9,2742.8,0.21833853]
[1645969631622,0.25,2743.9,2742.3,0.2243561]
[1645969631623,0.25,2743.9,2742.3,0.18283526]
[1645969631819,0.25,2743.5,2741.9,0.3]
[1645969632020,0.25,2743.5,2742.0,18.25060883]
[1645969632220,0.1458,2743.4,2742.1,1.56286034]
[1645969632419,0.1458,2743.4,2742.1,1.0]
[1645969632820,0.1458,2743.4,2742.1,0.17543468]
[1645969633020,1.15213021,2742.9,2742.1,0.44434657]
[1645969633225,1.15213021,2742.9,2742.1,0.17543468]
[1645969633226,0.1458,2742.8,2742.1,0.17543468]
[1645969633423,1.02892463,2742.4,2742.1,0.17543468]
[1645969633627,1.15213021,2742.9,2742.2,7.2934]
[1645969633628,0.1458,2742.3,2742.2,7.2934]
[1645969633822,0.00552885,2742.9,2742.2,7.2934]
[1645969633823,0.1458,2742.8,2742.2,8.2934]
[1645969634228,0.1458,2742.8,2740.9,0.20121314]
[1645969634229,8.1026,2742.7,2740.9,0.20121314]
[1645969634574,1.19377534,2741.0,2740.4,1.0]
[1645969634776,3.5,2742.4,2740.4,0.30492971]
[1645969634972,0.1458,2742.6,2740.4,0.30492971]
[1645969634973,0.15132891,2742.6,2740.9,0.0020963]
[1645969635276,0.25,2742.5,2740.9,0.0020963]
[1645969635477,0.25,2742.5,2741.4,1.0]
[1645969635680,0.25,2742.5,2741.1,1.0]
[1645969635882,0.25,2742.5,2740.5,0.2233573]
[1645969635883,0.25,2742.5,2740.8,0.20604867]
[1645969636079,0.25,2742.5,2740.8,0.1472]
[1645969636080,0.00490812,2741.8,2740.8,0.1472]
[1645969636281,0.00490812,2741.8,2740.9,10.918]
[1645969636483,0.00490812,2741.8,2741.0,14.27]
[1645969636679,0.00490812,2741.8,2741.7,1.0]
[1645969636979,0.1458,2743.0,2741.7,1.3]
[1645969637180,0.1458,2743.0,2741.7,0.47470769]
[1645969637181,0.01962935,2742.0,2741.7,0.47470769]
[1645969637380,0.01962935,2742.0,2741.9,1.0]
[1645969637583,0.01962935,2742.0,2741.9,1.3]
[1645969637980,0.01962935,2742.0,2741.8,0.3]
[1645969638183,0.1458,2742.8,2741.8,0.3]
[1645969638409,0.3958,2743.0,2741.8,1.0]
[1645969638608,0.3958,2743.0,2741.8,1.3]
[1645969638609,0.00553866,2742.1,2741.8,1.3]
[1645969639009,0.00553866,2742.1,2741.8,0.3]
[1645969639212,0.00553866,2742.1,2742.0,11.77]
[1645969639413,0.25,2744.1,2742.0,12.26306322]
[1645969639414,0.1458,2742.8,2742.0,12.26306322]
[1645969639611,0.3958,2742.8,2742.5,1.0]
[1645969639915,0.3958,2742.8,2742.5,1.3]
[1645969640116,0.25,2742.8,2742.5,1.3]
[1645969640311,0.25,2742.8,2742.5,1.15]
[1645969640815,0.25553849,2742.8,2742.5,1.15]
[1645969641213,0.00553849,2742.8,2742.7,10.77]
[1645969641412,0.01259913,2744.4,2742.7,10.77]
[1645969641413,0.1458,2743.0,2742.8,5.25092282]
[1645969641613,3.8469,2744.8,2743.0,15.77]
[1645969641810,3.8469,2744.8,2743.1,3.67071351]
[1645969641811,0.1458,2744.4,2743.1,3.67071351]
[1645969642074,0.1458,2744.4,2744.2,1.0]
[1645969642274,0.1458,2744.4,2743.1,3.67071351]
[1645969642275,0.64376489,2743.9,2743.2,3.71817864]
[1645969642475,0.1457,2743.8,2743.4,10.77]
[1645969642672,3.8469,2744.8,2743.5,7.29]
[1645969642874,0.1457,2743.8,2743.5,7.50556881]
[1645969643081,0.1457,2744.7,2743.5,7.50556881]
[1645969643278,0.3957,2744.7,2743.5,8.50556881]
[1645969643783,0.1457,2744.7,2743.8,1.18557872]
[1645969643979,0.01236882,2746.0,2743.8,1.18557872]
[1645969643980,0.1457,2744.8,2743.9,3.5]
[1645969644280,0.1457,2744.8,2743.9,11.1411338]
[1645969644480,0.1457,2744.8,2744.0,10.91]
[1645969644682,1.03119233,2744.2,2743.9,7.2889]
[1645969644882,0.1457,2744.1,2743.9,7.47083791]
[1645969645082,0.1457,2744.1,2744.0,0.1608]
[1645969645281,0.01254656,2745.4,2744.0,0.1608]
[1645969645282,0.1457,2744.8,2744.0,0.1608]
[1645969645485,0.1457,2744.8,2743.9,7.2889]
[1645969645681,0.45033295,2746.1,2743.9,7.2889]
[1645969645682,4.41535983,2744.9,2744.8,0.1608]
[1645969647135,0.00544798,2745.0,2744.9,3.5]
[1645969647336,0.00544798,2745.0,2744.9,8.2862]
[1645969647537,0.00544798,2745.0,2744.9,8.63025396]
[1645969647735,0.00544798,2745.0,2744.9,8.747]
[1645969648134,4.798e-05,2745.1,2744.9,8.747]
[1645969648335,4.798e-05,2745.1,2744.9,9.05774176]
[1645969648637,4.798e-05,2745.1,2745.0,0.1608]
[1645969648840,4.798e-05,2745.1,2745.0,7.61145159]
[1645969649035,0.04040605,2745.1,2745.0,7.91145159]
[1645969649236,0.04040605,2745.1,2745.0,8.7468]
[1645969649753,3.47150605,2746.4,2745.0,8.586]
[1645969649952,3.47150605,2746.4,2745.5,0.1608]
[1645969650553,1.22610472,2746.3,2745.5,0.1608]
[1645969650753,0.00554376,2746.1,2746.0,0.1608]
[1645969650958,0.00554376,2746.1,2745.7,0.1608]
[1645969651158,0.00554376,2746.1,2745.5,5.12056554]
[1645969651361,0.00554376,2746.1,2746.0,1.1608]
[1645969651558,4.376e-05,2746.1,2746.0,4.86397584]
[1645969651759,4.376e-05,2746.1,2746.0,23.1757]
[1645969651957,0.05,2747.2,2746.1,7.15190656]
[1645969651958,0.02178178,2746.3,2746.1,7.15190656]
[1645969652164,0.02178178,2746.3,2746.2,7.2828]
[1645969652458,8.178e-05,2746.3,2746.2,7.93718986]
[1645969652656,8.178e-05,2746.3,2746.2,8.8804]
[1645969652857,0.05,2747.2,2746.2,8.92427784]
[1645969653061,0.3526,2748.6,2746.2,8.92427784]
[1645969653062,1.2474,2750.5,2747.1,1.01252842]
[1645969653317,1.2474,2750.5,2747.0,5.0]
[1645969653318,0.1454,2749.2,2747.4,1.0]
[1645969653514,0.25,2748.9,2747.2,7.5801]
[1645969653716,0.01211721,2748.3,2746.8,0.13819997]
[1645969653919,0.01211721,2748.3,2746.2,0.5]
[1645969653920,0.25,2748.0,2746.2,0.5]
[1645969654115,0.31471721,2747.8,2746.2,0.5]
[1645969654517,0.31471721,2747.8,2745.0,0.21039264]
[1645969654518,0.25,2747.4,2745.0,0.21039264]
[1645969654715,0.25,2747.4,2745.1,7.47154729]
[1645969654916,0.56471721,2747.4,2745.1,7.47154729]
[1645969655120,0.3526,2747.5,2746.0,0.1608]
[1645969655317,0.25,2746.9,2746.0,0.1608]
[1645969655518,0.00485295,2746.4,2746.0,0.1608]
[1645969656321,2.25,2747.6,2745.1,7.42099997]
[1645969656322,0.1456,2747.4,2745.3,0.21135887]
[1645969656525,0.25,2747.8,2745.3,1.63802574]
[1645969656721,0.00554536,2746.4,2746.1,0.0023629]
[1645969656917,4.536e-05,2746.4,2746.3,0.1608]
[1645969657154,4.536e-05,2746.4,2746.3,0.37621074]
[1645969657354,4.536e-05,2746.4,2746.3,1.77242104]
[1645969657561,3.2728213,2747.7,2746.4,0.20980638]
[1645969657757,0.25,2747.6,2746.4,0.20980638]
[1645969657956,0.25,2747.6,2747.4,0.1608]
[1645969658960,1.11152954,2747.9,2747.4,0.1608]
[1645969659166,1.36152954,2747.9,2747.4,0.1608]
[1645969659361,0.25,2747.9,2747.7,0.1608]
[1645969659561,0.25,2747.9,2747.2,0.02128732]
[1645969659764,0.25,2747.9,2747.7,0.1608]
[1645969659965,0.25,2747.9,2746.3,7.49687004]
[1645969660167,0.00555506,2747.7,2747.0,0.00246424]
[1645969660366,1.04963063,2747.3,2747.0,0.00246424]
[1645969660564,0.00555506,2747.7,2747.0,0.00246424]
[1645969661215,0.25,2747.6,2746.3,7.2825]
[1645969661410,0.25,2747.6,2746.3,7.48554444]
[1645969661613,0.25,2747.6,2747.0,0.00246424]
[1645969661614,0.00555511,2747.5,2747.0,0.00246424]
[1645969661922,7.6454,2748.5,2747.1,6.5]
[1645969661923,0.1454,2748.5,2747.1,6.5]
[1645969662114,0.25,2749.7,2747.5,0.01215632]
[1645969662115,0.1454,2749.6,2747.5,0.01215632]
[1645969662315,0.1454,2749.6,2747.9,11.1226]
[1645969662316,0.1472746,2749.6,2747.9,11.1226]
[1645969662514,0.0018746,2749.6,2748.1,16.1226]
[1645969662717,6.5057,2751.4,2748.8,11.1226]
[1645969662718,0.0018746,2749.8,2748.8,11.1226]
[1645969662918,0.1454,2751.3,2749.0,11.1226]
[1645969663117,0.16871336,2752.6,2749.0,11.1226]
[1645969663118,0.25,2752.5,2749.9,5.01252315]
[1645969663314,0.00212207,2752.5,2751.5,0.75]
[1645969663511,0.00212207,2752.5,2750.0,3.5]
[1645969663512,0.13003766,2750.6,2750.1,10.77]
[1645969663715,0.13003766,2750.6,2750.0,4.03533783]
[1645969663716,0.13003766,2750.6,2750.3,10.77]
[1645969663910,0.13003766,2750.6,2750.4,7.2717]
[1645969664112,0.13003766,2750.6,2750.4,7.5717]
[1645969664311,0.13003766,2750.6,2750.4,8.5717]
[1645969664600,6.7351,2752.2,2750.5,16.21903042]
[1645969664779,1.37629216,2751.6,2750.5,4.73683131]
[1645969664982,6.5897,2752.2,2750.5,4.73683131]
[1645969664983,11.0225,2752.1,2750.6,0.17187197]
[1645969665186,11.0225,2752.1,2750.5,1.27821261]
[1645969665187,0.02225329,2751.1,2750.7,3.70403768]
[1645969665382,0.02225329,2751.1,2750.9,0.5]
[1645969665583,6.44015329,2752.1,2750.9,0.5]
[1645969665786,13.29695329,2752.1,2750.9,0.5]
[1645969665987,13.29695329,2752.1,2750.8,6.0326]
[1645969666588,0.00212381,2752.0,2750.9,3.5]
[1645969666787,0.00212381,2752.0,2750.9,0.16383912]
[1645969666985,0.00212381,2752.0,2750.9,3.8]
[1645969666986,1.04989778,2751.8,2750.9,3.8]
[1645969667190,0.00212381,2752.0,2751.0,0.18170941]
[1645969667386,0.1453,2751.9,2751.0,0.18170941]
[1645969667585,0.00212381,2751.8,2751.0,0.18170941]
[1645969667786,0.1453,2751.7,2751.0,0.18170941]
[1645969668186,0.00212381,2751.7,2751.5,1.0]
[1645969668419,6.8568,2752.1,2751.1,0.20949893]
[1645969668420,0.00212381,2752.0,2751.1,0.20949893]
[1645969668617,6.8568,2752.1,2751.6,1.0]
[1645969668618,0.00212381,2751.7,2751.6,1.0]
[1645969668816,6.8568,2752.1,2751.6,1.3]
[1645969668817,0.00212381,2752.0,2751.6,1.3]
[1645969669019,6.8568,2752.1,2751.7,0.17374787]
[1645969669217,6.8568,2752.1,2751.8,8.506]
[1645969669618,6.8568,2752.1,2751.8,9.4622184]
[1645969669821,6.8568,2752.1,2752.0,1.0]
[1645969670018,0.06432072,2752.5,2752.1,7.0]
[1645969670221,0.25,2753.6,2752.3,7.69805718]
[1645969670422,1.27476821,2754.6,2753.2,0.01215891]
[1645969670723,1.0,2755.8,2753.2,0.01215891]
[1645969670724,1.0,2755.8,2753.4,0.19366071]
[1645969670921,0.25,2755.3,2754.7,1.0]
[1645969671120,0.25,2755.3,2753.6,0.27808874]
[1645969671121,0.95758494,2754.5,2753.6,0.27808874]
[1645969671319,0.95758494,2754.5,2753.6,0.17765375]
[1645969671520,1.25280787,2754.4,2753.4,1.21249415]
[1645969671724,1.25280787,2754.4,2752.6,0.5]
[1645969671725,5.2526,2754.4,2752.6,0.5]
[1645969671923,0.3526,2754.2,2752.7,8.7536]
[1645969672159,0.3526,2754.1,2752.7,8.7536]
[1645969672364,0.6026,2754.1,2752.7,8.7536]
[1645969672558,0.25,2753.8,2752.7,8.7536]
[1645969672759,1.39945816,2753.1,2752.7,8.7536]
[1645969672962,1.39945816,2753.1,2751.9,4.96987918]
[1645969672963,7.5,2753.0,2751.9,4.96987918]
[1645969673164,11.0,2753.0,2751.9,4.96987918]
[1645969673369,5.0,2752.7,2751.9,4.96987918]
[1645969673564,0.00210376,2752.9,2751.9,4.96987918]
[1645969673863,0.00210376,2752.9,2750.8,1.09839736]
[1645969673864,0.1022,2752.8,2751.0,0.16160658]
[1645969674065,1.09766314,2752.1,2751.0,0.16160658]
[1645969674263,0.00210376,2752.0,2750.9,4.97171203]
[1645969674465,0.00210376,2752.0,2751.0,0.26970234]
[1645969674665,0.00210376,2752.4,2751.1,4.97130461]
[1645969674867,0.2188862,2752.8,2751.1,4.97130461]
[1645969674868,0.25,2752.0,2751.2,0.20130327]
[1645969675064,0.25,2752.0,2751.3,0.00268923]
[1645969675263,0.25,2752.0,2751.6,1.0]
[1645969675467,0.25,2752.0,2751.6,1.17036919]
[1645969675468,15.5840094,2752.0,2751.6,1.17036919]
[1645969675667,3.77994417,2752.6,2751.9,0.01251179]
[1645969675668,0.00210376,2752.5,2751.9,0.01251179]
[1645969675963,0.25,2754.3,2751.9,0.01251179]
[1645969675964,0.0187618,2753.5,2752.5,0.16043733]
[1645969676153,0.0187618,2753.5,2752.5,0.24200464]
[1645969676353,0.01902887,2753.3,2753.0,1.0]
[1645969676552,0.01902887,2753.3,2753.2,0.20180785]
[1645969676755,7.9062,2754.4,2753.2,0.20180785]
[1645969676756,7.9062,2754.4,2753.2,1.20180785]
[1645969676953,1.20758494,2754.5,2753.3,3.5]
[1645969677152,1.20758494,2754.5,2753.4,0.19502459]
[1645969677354,1.20758494,2754.5,2753.8,1.0]
[1645969677557,1.20758494,2754.5,2753.9,7.2624]
[1645969677754,1.20758494,2754.5,2753.9,8.73081375]
[1645969677958,1.20758494,2754.5,2754.3,1.0]
[1645969678154,1.31937122,2754.4,2754.3,1.0]
[1645969678361,0.3,2754.3,2753.9,8.5624]
[1645969678566,3.8,2754.3,2753.9,6.7624]
[1645969678764,3.8,2754.3,2753.9,5.7624]
[1645969678765,0.4019,2754.3,2753.9,5.7624]
[1645969678961,0.3,2754.3,2753.9,5.7624]
[1645969679160,0.3,2754.3,2753.0,0.21807989]
[1645969679161,7.5,2754.2,2753.1,0.15663318]
[1645969679362,7.5,2754.2,2751.8,0.36254666]
[1645969679569,7.5,2754.2,2751.9,0.1056]
[1645969679570,0.00209408,2754.1,2751.9,0.1056]
[1645969679771,0.00209408,2754.1,2751.6,0.27013323]
[1645969679772,3.60469408,2754.1,2751.8,1.20099227]
[1645969679972,5.00557481,2753.8,2753.1,8.625e-05]
[1645969680176,0.00557481,2753.8,2753.1,8.625e-05]
[1645969680770,0.00557481,2753.8,2752.0,9.518e-05]
[1645969680771,7.5,2753.7,2752.0,9.518e-05]
[1645969680973,3.5,2754.1,2752.0,9.518e-05]
[1645969680974,7.03609743,2753.6,2752.0,0.22145443]
[1645969681177,7.03609743,2753.6,2751.8,4.633e-05]
[1645969681178,4.74926675,2753.5,2751.8,4.633e-05]
[1645969681373,0.01270163,2752.9,2750.5,20.47996819]
[1645969681572,0.01270163,2752.9,2750.9,6.9368]
[1645969681770,0.3526,2753.1,2750.9,2.6338]
[1645969681976,0.3526,2752.9,2750.9,1.4753]
[1645969682175,3.8873,2752.9,2750.9,1.4753]
[1645969682376,3.8873,2752.9,2750.9,1.67662672]
[1645969682575,3.8873,2752.9,2751.3,1.0]
[1645969682783,5.0,2751.8,2750.0,10.0]
[1645969682983,5.3526,2751.4,2750.0,10.0]
[1645969683178,0.01248367,2752.1,2750.0,9.113]
[1645969683179,0.0125538,2752.1,2750.0,9.113]
[1645969683435,0.17505894,2752.2,2749.5,10.15176494]
[1645969683436,5.0,2751.7,2749.5,4.97436187]
[1645969683633,11.0,2752.2,2748.6,0.27887747]
[1645969683634,3.5,2751.6,2749.1,4.97497377]
[1645969683931,0.0020821,2751.6,2749.6,9.902]
[1645969684131,0.3526,2751.6,2749.8,0.349]
[1645969684332,0.3526,2751.1,2749.8,0.349]
[1645969684531,0.0020821,2751.0,2748.8,0.24239583]
[1645969684731,0.0020821,2751.7,2750.5,0.00277509]
[1645969684933,0.0020821,2751.7,2750.5,7.509e-05]
[1645969684934,0.3546821,2751.7,2750.5,7.509e-05]
[1645969685132,0.3526,2750.8,2750.5,7.509e-05]
[1645969685338,0.3526,2750.6,2748.7,10.77]
[1645969685534,0.0020821,2750.5,2749.0,10.77]
[1645969685733,0.0020821,2751.6,2749.3,0.01201684]
[1645969685932,0.0020821,2751.1,2749.5,0.1942376]
[1645969686133,6.8663821,2752.1,2749.9,0.01215638]
[1645969686332,0.0020821,2751.2,2751.0,10.77]
[1645969686534,6.8643,2752.1,2751.0,10.77]
[1645969686535,0.0020821,2752.0,2751.0,10.77]
[1645969686734,0.2520821,2751.7,2751.0,12.07]
[1645969686933,1.2084071,2751.6,2751.0,1.3]
[1645969687168,0.25,2751.7,2751.0,1.3]
[1645969687370,0.25,2751.7,2751.0,3.8]
[1645969687572,0.0020821,2752.3,2751.1,0.1603491]
[1645969687879,0.0020821,2752.3,2751.6,10.96712215]
[1645969688170,0.25,2752.4,2751.9,10.77]
[1645969688372,0.0020821,2752.3,2751.9,11.07]
[1645969688573,0.2,2752.4,2752.0,10.77]
[1645969688774,0.2,2752.4,2752.1,1.0]
[1645969688976,0.0020821,2753.0,2752.1,1.3]
[1645969689175,0.0020821,2753.0,2752.1,0.3]
[1645969689372,0.0020821,2753.0,2752.7,1.0]
[1645969689373,0.25,2752.9,2752.7,1.0]
[1645969689575,0.0020821,2753.0,2752.1,0.3]
[1645969689576,0.63861392,2752.4,2752.1,0.3]
[1645969689773,0.63861392,2752.4,2752.0,0.49916887]
[1645969689977,0.63861392,2752.4,2752.0,0.3]
[1645969689978,1.56570965,2752.3,2752.0,0.3]
[1645969690174,1.56570965,2752.3,2751.4,0.1453]
[1645969690175,1.21310965,2752.3,2751.4,0.1453]
[1645969690381,6.5,2752.2,2751.2,0.16812792]
[1645969690575,6.5,2752.2,2750.4,0.1453]
[1645969690576,3.5020821,2752.1,2750.4,0.1453]
[1645969690826,3.5,2752.0,2750.3,10.77]
[1645969691024,6.75,2752.2,2750.3,0.21847142]
[1645969691025,0.0020821,2751.9,2750.3,0.21847142]
[1645969691224,0.25,2751.8,2750.2,0.5]
[1645969691424,0.25,2751.8,2751.3,1.0]
[1645969691425,0.0020821,2751.7,2751.3,1.0]
[1645969691625,0.25,2751.8,2751.3,1.0]
[1645969692227,0.25,2751.8,2751.4,0.26808278]
[1645969692228,1.2207139,2751.7,2751.4,0.26808278]
[1645969692431,1.2207139,2751.7,2750.2,0.1453]
[1645969692432,7.5,2751.6,2750.2,0.1453]
[1645969692632,5.0,2751.2,2750.2,0.1453]
[1645969692829,7.5020821,2751.6,2749.7,3.5]
[1645969692830,0.2520821,2751.1,2749.7,3.5]
[1645969693032,0.2520821,2751.1,2749.6,8.2738]
[1645969693033,0.1474821,2751.5,2749.8,14.27]
[1645969693230,0.0020821,2751.0,2749.9,0.42503895]
[1645969693427,0.0020821,2751.4,2750.0,10.97155596]
[1645969693727,0.0020821,2751.7,2750.0,11.27155596]
[1645969693928,0.0020821,2751.7,2750.2,0.44869553]
[1645969694131,0.0020821,2752.1,2751.6,1.0]
[1645969694336,0.0020821,2752.2,2751.7,7.85486268]
[1645969694603,50.0,2753.0,2751.7,7.85486268]
[1645969694604,0.5,2752.8,2751.8,0.41516598]
[1645969694892,0.00209602,2752.4,2752.0,11.5]
[1645969695094,32.76432141,2753.0,2752.5,10.77]
[1645969695397,0.0187879,2755.1,2752.5,10.77]
[1645969695398,0.95758494,2754.5,2753.0,10.95889832]
[1645969695599,0.95758494,2754.5,2753.2,11.00330255]
[1645969695792,0.95758494,2754.5,2753.4,15.77]
[1645969695994,8.494e-05,2754.5,2754.4,11.77]
[1645969696191,8.494e-05,2754.5,2754.4,11.95170312]
[1645969696396,8.494e-05,2754.5,2754.4,21.4919]
[1645969696594,5.8769,2755.7,2754.6,10.77]
[1645969696794,5.8769,2755.7,2755.6,10.77]
[1645969696993,5.8769,2755.7,2755.6,18.3279]
[1645969697197,5.8769,2755.7,2755.6,9.5579]
[1645969697601,5.8769,2755.7,2755.6,5.9579]
[1645969697796,5.8269,2755.7,2755.6,7.16690873]
[1645969697994,5.8269,2755.7,2755.6,7.34101535]
[1645969698196,5.8269,2755.7,2755.6,17.93690873]
[1645969698444,5.8269,2755.7,2755.6,7.37139901]
[1645969698646,5.52985869,2755.7,2755.6,7.16690873]